bitfinex/quotes_ETHUSD_20250217
["timestamp","ask_amount","ask_price","bid_price","bid_amount"]
[1739793660968,3.62188,2761.0,2760.5,1.06361445]
[1739793661175,3.62188,2761.0,2760.5,4.68613445]
[1739793661475,3.62174,2761.1,2760.6,3.62231]
[1739793662673,3.6219,2761.0,2760.5,4.68613445]
[1739793662875,3.6219,2761.0,2760.6,0.52256286]
[1739793663244,3.62171,2761.2,2760.6,0.52256286]
[1739793663425,3.62176,2761.1,2760.6,4.14495286]
[1739793664032,3.62188,2761.0,2760.6,0.52256286]
[1739793664476,3.62171,2761.2,2760.6,0.52256286]
[1739793664672,3.62181,2761.1,2760.6,4.14489286]
[1739793665033,1.0569,2761.3,2760.7,4.03664929]
[1739793665278,1.0569,2761.3,2760.9,1.038]
[1739793665279,3.62151,2761.3,2760.9,1.038]
[1739793665460,3.62151,2761.3,2760.9,4.65998]
[1739793665644,3.62151,2761.3,2760.9,4.65999]
[1739793665844,3.62151,2761.3,2760.9,1.038]
[1739793666253,3.62162,2761.2,2760.9,1.038]
[1739793666443,7.2428,2761.4,2760.9,1.038]
[1739793666728,3.6215,2761.3,2760.9,1.038]
[1739793667084,3.62137,2761.4,2760.9,1.038]
[1739793667233,7.24282,2761.4,2760.9,4.66]
[1739793667435,3.62141,2761.4,2760.9,1.038]
[1739793667923,0.55,2761.5,2760.9,1.038]
[1739793667924,0.55,2761.5,2760.9,1.52146443]
[1739793668156,4.1713,2761.5,2761.0,7.00390498]
[1739793668329,4.17131,2761.5,2760.9,1.038]
[1739793668633,4.17131,2761.5,2760.9,4.65994]
[1739793668832,3.62148,2761.3,2760.9,1.038]
[1739793670334,3.62148,2761.3,2760.9,4.65998]
[1739793670537,3.62137,2761.4,2760.9,4.65998]
[1739793671290,3.62165,2761.2,2760.7,7.00435498]
[1739793671582,3.6216,2761.3,2760.7,7.00434498]
[1739793671738,3.6216,2761.3,2760.8,3.62203]
[1739793671933,3.62158,2761.3,2760.8,3.62203]
[1739793672338,3.62148,2761.3,2760.7,7.00430498]
[1739793672538,3.62165,2761.2,2760.7,7.00435498]
[1739793672786,3.62235,2760.7,2760.5,5.33]
[1739793672947,3.62202,2760.9,2760.5,5.33]
[1739793673152,4.70415,2761.0,2760.5,8.95252]
[1739793673339,4.66272,2761.3,2760.5,8.9524]
[1739793673541,3.62161,2761.2,2760.6,3.62233]
[1739793673734,3.62176,2761.1,2760.6,6.1050185]
[1739793673935,4.66272,2761.3,2760.7,3.6222]
[1739793674152,3.62135,2761.4,2760.8,1.0615]
[1739793674487,3.62163,2761.2,2760.8,1.0615]
[1739793674655,3.62184,2761.1,2760.6,6.1050785]
[1739793675181,3.62163,2761.2,2760.7,3.62226]
[1739793675389,3.62143,2761.4,2760.7,1.61225385]
[1739793675537,3.62136,2761.4,2760.9,3.62193]
[1739793676694,3.62136,2761.4,2760.9,3.62199]
[1739793676899,0.55,2761.5,2760.7,4.99440883]
[1739793677064,0.55,2761.5,2760.8,1.1021]
[1739793677401,0.55,2761.5,2761.2,3.62152]
[1739793677549,0.55,2761.5,2761.2,3.65773205]
[1739793677755,0.55,2761.5,2761.3,3.62145]
[1739793678055,0.55,2761.5,2761.4,4.72345]
[1739793679605,0.55,2761.5,2761.4,18.95965747]
[1739793679771,0.55,2761.5,2761.4,24.51977625]
[1739793680869,0.55,2761.5,2761.4,25.06977625]
[1739793681186,0.55,2761.5,2761.4,25.07727625]
[1739793681579,0.55,2761.5,2761.4,25.25509876]
[1739793681971,1e-05,2761.5,2761.4,25.25509876]
[1739793684018,1e-05,2761.5,2761.4,25.98414722]
[1739793684469,1e-05,2761.5,2761.4,25.42664722]
[1739793684675,1e-05,2761.5,2761.4,25.52282471]
[1739793685323,1e-05,2761.5,2761.4,25.24882471]
[1739793685499,1e-05,2761.5,2761.4,25.52282471]
[1739793687072,1.1287,2762.9,2762.4,3.61991]
[1739793687278,1.1287,2762.9,2762.5,3.61983]
[1739793687510,4.74808,2762.9,2762.4,7.00206498]
[1739793687717,3.6192,2763.1,2762.5,3.6199]
[1739793687911,1.0675,2763.2,2762.6,0.03619283]
[1739793688095,3.61912,2763.1,2762.6,0.03619283]
[1739793688296,3.61926,2763.0,2762.6,0.03619283]
[1739793688791,3.62377,2763.4,2762.8,3.6194]
[1739793688993,0.005,2763.4,2763.0,3.38215498]
[1739793689230,3.62381,2763.4,2763.0,3.38215498]
[1739793689394,3.61888,2763.3,2762.9,1.097]
[1739793690427,3.61888,2763.3,2762.8,3.6194]
[1739793690428,0.5625,2763.4,2762.7,5.33]
[1739793690631,3.61951,2762.8,2762.7,5.33]
[1739793690841,3.61938,2763.0,2762.4,7.00211498]
[1739793691042,3.6194,2762.9,2762.4,7.00211498]
[1739793691201,3.61929,2763.0,2762.5,3.61984]
[1739793691393,3.61929,2763.0,2762.4,8.70703548]
[1739793691394,7.23865,2763.0,2762.4,8.70703548]
[1739793691589,3.61939,2762.9,2762.4,8.70703548]
[1739793692017,3.61961,2762.8,2762.4,3.38215498]
[1739793692387,3.61939,2762.9,2762.4,3.38215498]
[1739793693135,3.6192,2763.1,2762.5,3.61989]
[1739793693508,3.6192,2763.1,2762.4,7.00207498]
[1739793693834,3.61928,2763.0,2762.5,3.6199]
[1739793694129,3.61914,2763.1,2762.6,3.61977]
[1739793694333,3.61914,2763.1,2762.5,0.41226267]
[1739793694334,3.61926,2763.0,2762.5,0.41226267]
[1739793694636,3.61926,2763.0,2762.4,7.00208498]
[1739793695136,3.61926,2763.0,2762.5,3.61987]
[1739793695331,3.61914,2763.1,2762.6,3.61975]
[1739793695495,7.23838,2763.1,2762.6,3.61975]
[1739793695834,3.61927,2763.0,2762.4,3.38215498]
[1739793696127,3.61927,2763.0,2762.4,4.72507848]
[1739793696329,3.61927,2763.0,2762.5,3.61979]
[1739793697239,3.61927,2763.0,2762.5,7.23962]
[1739793697410,3.61919,2763.1,2762.5,7.23961]
[1739793697612,3.61919,2763.1,2762.4,4.72507848]
[1739793697797,3.61903,2763.2,2762.6,3.61973]
[1739793698129,3.61903,2763.2,2762.6,3.61964]
[1739793698331,1.0614,2763.3,2762.8,1.0883]
[1739793698529,0.005,2763.4,2762.8,4.70774]
[1739793698921,0.005,2763.4,2763.0,3.61923]
[1739793699118,0.005,2763.4,2763.0,7.2384]
[1739793699318,0.005,2763.4,2763.0,3.61917]
[1739793699534,0.005,2763.4,2763.0,7.00132498]
[1739793700215,0.005,2763.4,2763.1,3.61905]
[1739793700414,0.005,2763.4,2763.0,7.00132498]
[1739793700734,0.005,2763.4,2763.0,8.17223348]
[1739793700929,0.005,2763.4,2763.1,1.0826]
[1739793701241,0.005,2763.4,2763.1,4.70168]
[1739793701421,0.005,2763.4,2763.2,3.61894]
[1739793701621,0.005,2763.4,2763.1,4.70168]
[1739793701831,0.005,2763.4,2763.1,10.70236759]
[1739793702029,0.005,2763.4,2763.2,3.61896]
[1739793703536,0.005,2763.4,2763.2,3.61891]
[1739793703857,0.005,2763.4,2763.3,3.61886]
[1739793704152,0.005,2763.4,2763.3,7.00101498]
[1739793704325,0.005,2763.4,2763.3,8.40581491]
[1739793704923,0.005,2763.4,2763.1,2.34547435]
[1739793705120,0.005,2763.4,2763.0,15.87139498]
[1739793705338,0.005,2763.4,2763.0,12.25215498]
[1739793705520,3.62379,2763.4,2763.0,8.87]
[1739793706011,0.005,2763.4,2763.0,12.48918]
[1739793706625,3.62382,2763.4,2763.0,8.87]
[1739793706832,4.72593,2763.3,2763.0,8.87]
[1739793707259,4.72586,2763.3,2763.0,8.87]
[1739793707462,3.61905,2763.2,2762.9,5.33]
[1739793707757,4.092185,2763.2,2762.6,8.87]
[1739793708058,3.6193,2763.0,2762.6,8.87]
[1739793708257,3.61988,2762.6,2762.0,3.6205]
[1739793708562,1.0545,2762.5,2761.9,8.71215498]
[1739793708759,3.62028,2762.3,2761.9,8.71215498]
[1739793709461,1.0545,2762.5,2761.6,1.0772]
[1739793709616,1.0545,2762.5,2761.7,3.62094]
[1739793709617,3.62032,2762.2,2761.7,3.62094]
[1739793710164,3.62032,2762.2,2761.6,1.8852615]
[1739793710165,7.24075,2762.2,2761.6,1.8852615]
[1739793710460,3.62032,2762.2,2761.6,5.5063415]
[1739793710664,3.62018,2762.3,2761.6,5.5062615]
[1739793711031,3.62018,2762.3,2761.6,9.1272615]
[1739793711364,3.62018,2762.3,2761.7,4.87188165]
[1739793711547,3.62041,2762.2,2761.7,1.25094165]
[1739793711864,3.6204,2762.2,2761.7,1.25094165]
[1739793712014,3.62037,2762.2,2761.7,1.25094165]
[1739793712209,3.62004,2762.4,2761.7,1.25094165]
[1739793712210,3.62019,2762.3,2761.8,3.62082]
[1739793712515,3.62004,2762.4,2761.8,8.0407773]
[1739793712813,4.67186,2762.8,2762.2,3.62019]
[1739793713013,3.61932,2763.0,2762.4,3.38215498]
[1739793713213,3.61905,2763.2,2762.6,3.61975]
[1739793713418,3.61905,2763.2,2762.7,3.38215498]
[1739793713669,1.0573,2763.4,2762.5,8.87]
[1739793714020,3.6192,2763.1,2762.5,8.87]
[1739793714231,3.6192,2763.1,2762.6,3.61974]
[1739793714466,1.0573,2763.4,2762.6,3.61974]
[1739793714870,3.61908,2763.2,2762.6,3.61974]
[1739793715020,3.61915,2763.1,2762.6,3.61974]
[1739793715213,3.61915,2763.1,2762.6,5.5689295]
[1739793715430,3.61908,2763.2,2762.6,9.1886195]
[1739793715634,3.61908,2763.2,2762.6,5.5688795]
[1739793716069,3.61908,2763.2,2762.6,9.1885795]
[1739793716275,3.61887,2763.3,2762.8,4.74409]
[1739793716767,3.619,2763.2,2762.8,1.1246]
[1739793717086,3.619,2763.2,2762.7,3.38215498]
[1739793717273,3.619,2763.2,2762.7,4.38971643]
[1739793718526,7.23809,2763.2,2762.7,4.38971643]
[1739793718834,3.619,2763.2,2762.7,4.38971643]
[1739793719570,3.61916,2763.1,2762.6,3.61967]
[1739793719788,3.61954,2762.8,2762.3,8.87]
[1739793719924,3.61966,2762.7,2762.3,8.87]
[1739793720127,0.0125,2763.4,2762.3,8.87]
[1739793720128,3.61933,2763.0,2762.4,7.00216498]
[1739793720326,3.61933,2763.0,2762.4,7.00210498]
[1739793720552,3.61933,2763.0,2762.5,1.5872105]
[1739793720776,4.64153,2763.2,2762.5,1.5872105]
[1739793720943,3.61935,2763.0,2762.5,1.5872105]
[1739793721569,3.61942,2762.9,2762.5,1.5872105]
[1739793721770,3.61933,2763.0,2762.5,1.5872105]
[1739793721973,3.61949,2762.9,2762.4,3.38215498]
[1739793723385,4.6416,2763.2,2762.6,3.61972]
[1739793723725,3.61921,2763.1,2762.5,3.61989]
[1739793723938,3.61921,2763.1,2762.6,3.61974]
[1739793724375,1.0225,2763.2,2762.5,3.61989]
[1739793724561,3.62381,2763.4,2762.7,3.61952]
[1739793724759,3.61886,2763.3,2762.7,3.61952]
[1739793724967,3.61902,2763.2,2762.7,3.61952]
[1739793725362,7.24264,2763.4,2762.8,3.61944]
[1739793725534,3.6238,2763.4,2762.8,3.61944]
[1739793725734,0.005,2763.4,2762.8,0.63267789]
[1739793725948,3.61887,2763.3,2762.8,4.25218789]
[1739793726178,3.62382,2763.4,2762.8,4.25217789]
[1739793726179,0.005,2763.4,2762.8,4.25217789]
[1739793726347,0.005,2763.4,2762.9,3.61938]
[1739793726544,0.005,2763.4,2762.9,3.6193]
[1739793726788,0.005,2763.4,2763.0,1.53141658]
[1739793726960,3.61886,2763.3,2762.8,4.25212789]
[1739793727489,4.68496,2763.3,2762.6,17.81973]
[1739793727672,1.0661,2763.3,2762.6,14.2]
[1739793727871,3.61946,2762.9,2762.6,14.2]
[1739793728072,3.61946,2762.9,2762.4,1.0474]
[1739793728073,3.61946,2762.9,2762.4,4.66742]
[1739793728423,3.61952,2762.8,2762.4,1.0474]
[1739793728641,3.61952,2762.8,2762.4,2.934155]
[1739793728775,3.6199,2762.5,2762.1,1.0537]
[1739793728980,1.0226,2762.7,2762.0,8.87]
[1739793729220,7.23964,2762.6,2762.0,8.87]
[1739793729477,3.62007,2762.4,2762.0,11.1011325]
[1739793730224,3.62007,2762.4,2762.0,8.87]
[1739793730398,3.61991,2762.5,2762.0,8.87]
[1739793730599,3.61986,2762.6,2762.0,8.87]
[1739793730931,1.0226,2762.7,2762.2,3.38215498]
[1739793731132,3.79970697,2763.5,2762.5,3.38215498]
[1739793731426,4.73499,2763.4,2762.9,3.61931]
[1739793731579,1.1162,2763.4,2762.9,3.61931]
[1739793731925,0.005,2763.4,2762.9,0.03618688]
[1739793732150,0.005,2763.4,2763.3,4.74606]
[1739793732313,0.005,2763.4,2763.3,13.65223834]
[1739793732502,0.005,2763.4,2763.3,15.68139833]
[1739793733644,0.005,2763.4,2763.3,18.68139833]
[1739793737129,0.005,2763.4,2763.3,24.01139833]
[1739793737717,0.005,2763.4,2763.3,16.26533833]
[1739793737919,0.005,2763.4,2763.3,14.2]
[1739793742166,3.61916,2763.1,2762.7,3.38215498]
[1739793742374,3.61886,2763.3,2762.7,3.38215498]
[1739793742547,3.61922,2763.1,2762.7,3.38215498]
[1739793742747,7.23844,2763.1,2762.7,3.38215498]
[1739793742944,3.61932,2763.0,2762.7,3.38215498]
[1739793743707,3.61932,2763.0,2762.6,0.3382155]
[1739793744507,3.61932,2763.0,2762.4,15.87208498]
[1739793745160,3.6194,2762.9,2762.4,15.87208498]
[1739793745361,3.6194,2762.9,2762.4,12.25215498]
[1739793745557,3.6194,2762.9,2762.4,8.87]
[1739793745885,3.6194,2762.9,2762.3,5.33]
[1739793745886,3.61978,2762.6,2762.3,5.33]
[1739793746097,3.61992,2762.5,2762.3,5.33]
[1739793746281,3.61967,2762.7,2762.1,3.62034]
[1739793746478,3.61967,2762.7,2762.1,4.3205895]
[1739793747006,3.61967,2762.7,2762.1,7.9409495]
[1739793747249,3.61967,2762.7,2762.1,4.3205895]
[1739793747363,3.61979,2762.6,2762.1,0.7002495]
[1739793747564,3.6199,2762.5,2762.1,0.7002495]
[1739793747879,7.2399,2762.5,2762.0,3.38215498]
[1739793748207,3.6199,2762.5,2762.0,3.38215498]
[1739793749007,3.6199,2762.5,2762.0,7.00270498]
[1739793749492,3.61968,2762.7,2762.1,3.62033]
[1739793749794,3.61968,2762.7,2762.2,3.62029]
[1739793750859,1.0403,2762.8,2762.4,3.62003]
[1739793751075,1.035,2763.1,2762.6,3.38215498]
[1739793751309,1.035,2763.1,2762.6,7.00183498]
[1739793751465,4.65419,2763.1,2762.6,7.00183498]
[1739793751813,3.61927,2763.0,2762.4,3.62001]
[1739793751995,1.035,2763.1,2762.4,4.4324065]
[1739793752194,1.035,2763.1,2762.6,3.61972]
[1739793752718,4.65423,2763.1,2762.6,3.61972]
[1739793753071,3.61926,2763.0,2762.4,4.4323565]
[1739793753980,1.035,2763.1,2762.0,21.20263498]
[1739793753981,3.61991,2762.5,2762.0,21.20263498]
[1739793754308,3.61984,2762.6,2762.1,3.6204]
[1739793754609,4.72892,2762.4,2762.0,5.33]
[1739793754821,3.62017,2762.3,2762.0,5.33]
[1739793755122,4.72892,2762.4,2762.0,5.33]
[1739793755417,4.72892,2762.4,2762.0,7.474144]
[1739793755926,1.1088,2762.4,2762.1,3.62035]
[1739793756519,1.1088,2762.4,2762.0,14.47678898]
[1739793757015,3.6196,2762.8,2762.3,7.00224498]
[1739793757375,1.0544,2762.9,2762.4,3.61996]
[1739793757575,1.0544,2762.9,2762.4,0.8047715]
[1739793757791,3.61954,2762.8,2762.4,0.8047715]
[1739793758720,3.61954,2762.8,2762.3,3.38215498]
[1739793758880,3.61954,2762.8,2762.3,7.00223498]
[1739793759083,1.0544,2762.9,2762.4,3.61995]
[1739793759296,4.67386,2762.9,2762.4,3.61995]
[1739793760220,4.67386,2762.9,2762.4,3.65614605]
[1739793760422,4.67386,2762.9,2762.5,3.61988]
[1739793760423,1.0544,2762.9,2762.5,3.61988]
[1739793760623,4.67388,2762.9,2762.4,3.65622605]
[1739793760782,8.29336,2762.9,2762.4,3.62003]
[1739793760979,4.67388,2762.9,2762.4,3.65622604]
[1739793761377,4.66699,2763.1,2762.5,3.61982]
[1739793761879,8.2862,2763.1,2762.5,3.61982]
[1739793762144,4.66699,2763.1,2762.6,3.6197]
[1739793762420,0.005,2763.4,2762.8,1.0611]
[1739793762622,3.62381,2763.4,2762.8,4.68054]
[1739793762792,3.61899,2763.2,2762.8,1.0611]
[1739793762995,7.24266,2763.4,2762.8,1.0611]
[1739793763197,3.61888,2763.3,2762.8,1.0611]
[1739793763429,3.62381,2763.4,2762.8,4.6806]
[1739793763597,0.839566,2763.4,2762.6,3.38215498]
[1739793763797,3.61927,2763.0,2762.5,3.61985]
[1739793764000,4.71589,2763.4,2762.7,3.61954]
[1739793764300,3.61888,2763.3,2762.8,3.61949]
[1739793764716,3.619,2763.2,2762.7,7.23908]
[1739793764914,3.61926,2763.0,2762.4,1.0611]
[1739793765278,3.61907,2763.2,2762.6,3.61977]
[1739793765798,7.23814,2763.2,2762.6,7.00192498]
[1739793766195,3.61907,2763.2,2762.7,3.61964]
[1739793766521,3.61892,2763.3,2762.7,4.6817985]
[1739793766845,3.61919,2763.1,2762.6,3.38215498]
[1739793766981,3.61919,2763.1,2762.5,7.23965]
[1739793767187,3.61912,2763.1,2762.5,3.61982]
[1739793767396,7.23836,2763.1,2762.5,3.61982]
[1739793767717,3.61954,2762.8,2762.3,10.62233498]
[1739793767919,4.68928,2762.9,2762.4,3.62001]
[1739793768241,1.0699,2762.9,2762.4,3.62001]
[1739793768452,1.0699,2762.9,2762.3,4.59291593]
[1739793768583,3.61958,2762.8,2762.3,10.62235498]
[1739793768788,3.61953,2762.8,2762.3,7.00221498]
[1739793769804,7.23913,2762.8,2762.3,7.00221498]
[1739793770002,3.61972,2762.7,2762.2,4.64819]
[1739793771229,3.61953,2762.8,2762.2,4.64819]
[1739793771436,7.23912,2762.8,2762.2,4.64819]
[1739793772331,3.61953,2762.8,2762.2,4.64819]
[1739793772494,3.61969,2762.7,2762.2,4.64819]
[1739793772695,3.61969,2762.7,2762.2,6.62587886]
[1739793773735,1.0699,2762.9,2762.4,3.61997]
[1739793773935,1.0552,2763.2,2762.6,3.61977]
[1739793774141,3.61919,2763.1,2762.6,3.61977]
[1739793774640,7.23841,2763.1,2762.6,3.61977]
[1739793774827,3.61919,2763.1,2762.6,3.61977]
[1739793775132,3.61927,2763.0,2762.5,0.03619733]
[1739793775343,3.61946,2762.9,2762.4,3.62003]
[1739793775491,3.61952,2762.8,2762.4,3.62003]
[1739793775693,3.61952,2762.8,2762.3,3.62009]
[1739793775890,3.61968,2762.7,2762.2,4.6482]
[1739793776439,3.6198,2762.6,2762.2,4.6482]
[1739793776643,3.62,2762.5,2762.0,11.094604]
[1739793776796,3.6198,2762.6,2762.0,11.094604]
[1739793776990,3.6198,2762.6,2762.1,3.62042]
[1739793778347,1.0744,2762.7,2762.2,3.6203]
[1739793778514,3.61951,2762.8,2762.3,3.62007]
[1739793779041,3.61951,2762.8,2762.2,3.6203]
[1739793779244,3.61964,2762.7,2762.1,9.46600738]
[1739793779396,3.61982,2762.6,2762.1,7.00255498]
[1739793779911,3.61964,2762.7,2762.1,7.00255498]
[1739793780306,1.0477,2762.9,2762.1,3.6204]
[1739793780521,3.61951,2762.8,2762.1,3.62031]
[1739793780725,3.6197,2762.7,2762.2,3.62027]
[1739793781709,7.23913,2762.8,2762.3,3.62016]
[1739793781921,1.0477,2762.9,2762.4,3.61994]
[1739793782099,1.0477,2762.9,2762.5,3.61988]
[1739793782305,4.66708,2762.9,2762.3,3.62008]
[1739793782617,4.66708,2762.9,2762.4,3.61997]
[1739793782798,4.66708,2762.9,2762.3,3.62008]
[1739793783243,3.61954,2762.8,2762.3,3.62006]
[1739793783547,4.66709,2762.9,2762.4,3.62002]
[1739793783742,3.61958,2762.8,2762.3,3.62006]
[1739793783898,3.61979,2762.6,2762.2,3.62029]
[1739793784097,1.0477,2762.9,2762.2,3.62029]
[1739793784427,3.61957,2762.8,2762.3,3.62008]
[1739793784633,3.61973,2762.7,2762.1,3.62034]
[1739793784905,7.23946,2762.7,2762.2,3.62025]
[1739793785068,3.61973,2762.7,2762.2,3.62025]
[1739793785273,3.61956,2762.8,2762.3,3.6201]
[1739793785761,1.0477,2762.9,2762.4,3.61995]
[1739793785947,4.66708,2762.9,2762.5,3.61989]
[1739793786567,3.61966,2762.7,2762.1,8.88951898]
[1739793786795,3.61966,2762.7,2762.2,5.0422019]
[1739793786967,3.61966,2762.7,2762.2,3.62025]
[1739793788760,7.23938,2762.7,2762.2,3.62025]
[1739793789058,3.61966,2762.7,2762.2,3.62025]
[1739793789794,3.61978,2762.6,2762.2,3.62025]
[1739793789998,1.0477,2762.9,2761.9,9.9195]
[1739793789999,1.0477,2762.9,2762.4,3.38215498]
[1739793790202,1.0477,2762.9,2762.5,3.61983]
[1739793790400,1.0477,2762.9,2762.4,7.00217498]
[1739793790696,4.66708,2762.9,2762.4,7.00211498]
[1739793790894,1.0477,2762.9,2762.4,7.00211498]
[1739793791224,1.0477,2762.9,2762.6,3.61976]
[1739793791786,1.0477,2762.9,2762.5,3.6199]
[1739793792422,3.61929,2763.0,2762.5,3.6199]
[1739793792590,1.126,2763.1,2762.7,3.61959]
[1739793793926,4.74519,2763.1,2762.5,3.61978]
[1739793794127,4.74519,2763.1,2762.5,4.4237335]
[1739793794291,1.126,2763.1,2762.5,4.4237335]
[1739793794629,3.61887,2763.3,2762.8,3.61951]
[1739793795029,4.74981,2763.4,2762.9,3.61937]
[1739793795324,8.36865,2763.4,2762.9,3.61937]
[1739793795509,4.74981,2763.4,2762.9,3.61937]
[1739793795886,1.131,2763.4,2762.9,3.61937]
[1739793796185,1.131,2763.4,2762.7,3.38215498]
[1739793796186,3.61886,2763.3,2762.8,4.66451]
[1739793797110,3.61886,2763.3,2762.8,8.28393]
[1739793797309,3.61886,2763.3,2762.8,5.38162768]
[1739793797730,1.131,2763.4,2762.8,5.38162768]
[1739793797898,1.131,2763.4,2762.9,3.61931]
[1739793798097,1.131,2763.4,2763.0,3.61925]
[1739793798298,0.005,2763.4,2762.8,1.76220768]
[1739793798499,0.005,2763.4,2763.1,3.61904]
[1739793798736,0.005,2763.4,2763.1,7.23809]
[1739793798897,0.005,2763.4,2763.1,3.61904]
[1739793799093,0.005,2763.4,2763.2,3.61896]
[1739793800119,0.005,2763.4,2763.3,4.65726]
[1739793800314,0.005,2763.4,2763.3,5.484882]
[1739793800838,0.005,2763.4,2763.3,8.86703698]
[1739793810464,0.005,2763.4,2763.3,7.82863698]
[1739793812164,0.005,2763.4,2763.3,20.72953698]
[1739793813329,0.005,2763.4,2763.3,17.347382]
[1739793814865,0.005,2763.4,2763.3,18.06429489]
[1739793816236,3.617,2764.8,2763.6,1.0627]
[1739793816555,3.62426,2764.9,2764.2,10.61735498]
[1739793816871,3.61689,2764.8,2764.2,6.99974498]
[1739793817058,3.62426,2764.9,2764.3,3.61745]
[1739793817427,3.61696,2764.8,2764.3,3.61745]
[1739793817626,3.62426,2764.9,2764.3,3.61745]
[1739793818271,1.0533,2765.0,2764.6,3.61709]
[1739793818704,4.67005,2765.0,2764.4,3.61733]
[1739793819175,3.61678,2764.9,2764.4,3.61733]
[1739793819670,3.61678,2764.9,2764.4,7.23465]
[1739793819971,3.61678,2764.9,2764.4,3.61732]
[1739793820175,4.66997,2765.0,2764.5,4.05982005]
[1739793820378,1.0533,2765.0,2764.6,3.61708]
[1739793820561,2.81879043,2765.3,2764.8,3.61681]
[1739793820727,2.81879043,2765.3,2764.6,4.68934]
[1739793820931,6.43510043,2765.3,2764.7,3.61702]
[1739793821131,6.43510043,2765.3,2764.8,0.830636]
[1739793821342,1.72209043,2765.3,2764.8,7.82964098]
[1739793821542,1.72209043,2765.3,2764.8,4.21279098]
[1739793821788,5.33836043,2765.3,2764.8,4.21279098]
[1739793821984,1.72209043,2765.3,2764.8,7.82966098]
[1739793822186,1.72209043,2765.3,2764.9,0.7829661]
[1739793822647,1.72209043,2765.3,2765.0,3.61662]
[1739793823280,1.72209043,2765.3,2764.9,0.7829661]
[1739793823478,1.72209043,2765.3,2764.9,4.3996561]
[1739793823644,1.72209043,2765.3,2764.9,0.7829661]
[1739793823844,1.72209043,2765.3,2765.0,0.77819311]
[1739793825194,3.61637,2765.2,2764.8,3.38215498]
[1739793825394,3.61714,2764.7,2764.4,8.87]
[1739793825597,3.61681,2764.9,2764.4,3.61741]
[1739793825776,3.61681,2764.9,2764.5,0.474051]
[1739793825976,1.72209043,2765.3,2764.5,0.474051]
[1739793825977,5.33841043,2765.3,2764.8,8.10722498]
[1739793826443,1.72209043,2765.3,2764.9,3.61673]
[1739793826611,1.72209043,2765.3,2764.8,11.72404498]
[1739793826798,1.72209043,2765.3,2764.9,3.61672]
[1739793827000,1.72209043,2765.3,2765.0,1.1723895]
[1739793827725,1.72209043,2765.3,2764.6,8.87]
[1739793827726,3.61685,2764.9,2764.6,8.87]
[1739793827899,3.61696,2764.8,2764.6,8.87]
[1739793828098,3.61659,2765.1,2764.6,8.87]
[1739793828316,3.61684,2764.9,2764.6,8.87]
[1739793829320,3.6169,2764.8,2764.3,1.1088]
[1739793829533,3.6169,2764.8,2764.3,2.4526545]
[1739793829534,7.23388,2764.8,2764.3,2.4526545]
[1739793829838,3.6169,2764.8,2764.3,2.4526545]
[1739793830014,3.6169,2764.8,2764.3,6.0701745]
[1739793830937,3.61673,2765.0,2764.4,6.99946498]
[1739793831137,4.69873,2765.2,2764.6,3.61708]
[1739793831346,3.61658,2765.1,2764.6,3.61708]
[1739793831842,3.61664,2765.0,2764.5,3.61728]
[1739793832142,3.61664,2765.0,2764.5,4.56240895]
[1739793832439,8.31523,2765.2,2764.6,3.61707]
[1739793832641,3.61653,2765.1,2764.6,3.61707]
[1739793832842,1.0823,2765.2,2764.5,0.94520895]
[1739793833011,5.33840043,2765.3,2764.8,3.61681]
[1739793833213,5.33840043,2765.3,2764.8,1.1736615]
[1739793833419,3.61652,2765.1,2764.7,4.50265498]
[1739793833614,8.95473043,2765.3,2764.7,8.11958498]
[1739793834034,5.33840043,2765.3,2764.7,8.11958498]
[1739793834247,3.61639,2765.2,2764.7,8.11958498]
[1739793834458,3.61639,2765.2,2764.7,4.50265498]
[1739793834671,3.61651,2765.1,2764.7,1.1205]
[1739793834834,3.61683,2764.9,2764.4,6.99946498]
[1739793835016,7.23367,2764.9,2764.4,9.00519048]
[1739793835217,3.61683,2764.9,2764.4,9.00519048]
[1739793835663,3.61723,2764.6,2764.2,5.33]
[1739793835958,3.61691,2764.8,2764.3,3.61753]
[1739793836131,3.61691,2764.8,2764.3,6.99968498]
[1739793836333,3.61728,2764.6,2764.3,3.38215498]
[1739793836729,3.61762,2764.3,2763.8,3.38215498]
[1739793836938,3.61762,2764.3,2763.8,8.69834148]
[1739793837621,3.61762,2764.3,2763.8,1.6980565]
[1739793837917,3.61804,2764.0,2763.6,8.87]
[1739793838116,3.61804,2764.0,2763.5,4.48405498]
[1739793838117,3.61784,2764.1,2763.5,8.10254498]
[1739793838548,3.61784,2764.1,2763.5,3.38215498]
[1739793838761,3.61784,2764.1,2763.3,8.9488]
[1739793838762,3.61847,2763.6,2763.3,5.33]
[1739793838935,3.61828,2763.8,2763.2,4.63728]
[1739793839121,7.2366,2763.8,2763.3,0.825637]
[1739793839320,3.61828,2763.8,2763.3,0.825637]
[1739793839627,3.61841,2763.7,2763.3,0.825637]
[1739793840356,3.61815,2763.9,2763.3,4.444387]
[1739793840659,3.61808,2763.9,2763.3,4.444387]
[1739793840822,3.61808,2763.9,2763.4,0.8844842]
[1739793841022,3.61822,2763.8,2763.4,0.8844842]
[1739793841218,3.61803,2764.0,2763.4,4.5031842]
[1739793841421,3.61789,2764.1,2763.4,0.8844842]
[1739793841627,3.61819,2763.9,2763.4,0.8844842]
[1739793841856,3.61817,2763.9,2763.5,3.38215498]
[1739793842055,3.61817,2763.9,2763.5,4.5325599]
[1739793842428,3.61822,2763.8,2763.5,3.38215498]
[1739793842622,3.61817,2763.9,2763.5,3.38215498]